fUST/lending_fUST_20241129
["ID","MTS","AMOUNT","RATE_DAILY","PERIOD"]
[343677412,1732847230334,-500.0,0.00028767,3]
[343677413,1732847230356,-500.0,0.00028767,3]
[343677414,1732847230377,-500.0,0.00028767,3]
[343677415,1732847230399,-500.0,0.00028767,3]
[343677416,1732847230425,-500.0,0.00028767,3]
[343677417,1732847230447,-542.62288253,0.00028767,3]
[343677418,1732847230475,-509.14799526,0.00028767,3]
[343677419,1732847230496,-540.9952696,0.00028767,3]
[343677420,1732847230515,-500.69865072,0.00028767,3]
[343677421,1732847230538,-503.66030787,0.00028767,3]
[343677422,1732847230559,-503.26881707,0.00028767,3]
[343677423,1732847230580,-500.0,0.00028767,3]
[343677424,1732847230602,-500.0,0.00028767,3]
[343677425,1732847230624,-500.0,0.00028767,3]
[343677426,1732847230646,-511.94111516,0.00028767,3]
[343677427,1732847230668,-424.68276916,0.00028767,3]
[343677428,1732847230689,-500.0,0.00028767,3]
[343677429,1732847230711,-500.0,0.00028767,3]
[343677430,1732847230733,-500.0,0.00028767,3]
[343677431,1732847230754,-500.68700164,0.00028767,3]
[343677432,1732847230777,-500.0,0.00028767,3]
[343677433,1732847230800,-500.0,0.00028767,3]
[343677434,1732847230823,-151.0,0.00028767,7]
[343677435,1732847230857,-500.0,0.00028767,3]
[343677436,1732847230887,-500.0,0.00028767,3]
[343677437,1732847230910,-151.0,0.00028767,7]
[343677438,1732847230931,-500.0,0.00028767,3]
[343677439,1732847230952,-500.0,0.00028767,3]
[343677440,1732847230975,-500.0,0.00028767,3]
[343677441,1732847231001,-500.0,0.00028767,3]
[343677442,1732847231023,-313.3306363,0.00028767,3]
[343677443,1732847231045,-500.0,0.00028767,3]
[343677444,1732847231066,-502.0280346,0.00028767,3]
[343677445,1732847231086,-500.0,0.00028767,3]
[343677446,1732847231107,-504.1649545,0.00028767,3]
[343677447,1732847231128,-502.799353,0.00028767,3]
[343677448,1732847231149,-242.29381309,0.00028767,3]
[343677449,1732847231170,-504.30794235,0.00028767,3]
[343677450,1732847231191,-502.31301793,0.00028767,3]
[343677451,1732847231211,-500.0,0.00028767,3]
[343677452,1732847231231,-505.19197156,0.00028767,3]
[343677453,1732847231250,-500.0,0.00028767,3]
[343677454,1732847231270,-559.76714956,0.00028767,3]
[343677455,1732847231293,-333.27797134,0.00028767,3]
[343677456,1732847231386,-500.0,0.00028767,3]
[343677457,1732847231425,-544.13626417,0.00028767,3]
[343677458,1732847231447,-502.77921286,0.00028767,3]
[343677459,1732847231467,-504.28754168,0.00028767,3]
[343677460,1732847231489,-500.0,0.00028767,3]
[343677461,1732847231510,-415.17313458,0.00028767,3]
[343677462,1732847231531,-500.0,0.00028767,3]
[343677463,1732847231552,-503.32463889,0.00028767,3]
[343677464,1732847231572,-500.0,0.00028767,3]
[343677465,1732847231592,-507.43170771,0.00028767,3]
[343677466,1732847231612,-500.0,0.00028767,3]
[343677467,1732847231632,-500.24972718,0.00028767,3]
[343677468,1732847231653,-500.0,0.00028767,3]
[343677469,1732847231674,-223.96008432,0.00028767,3]
[343677470,1732847231696,-500.0,0.00028767,3]
[343677471,1732847231717,-500.0,0.00028767,3]
[343677472,1732847231738,-503.25304675,0.00028767,3]
[343677473,1732847231759,-509.14610053,0.00028767,3]
[343677474,1732847231778,-407.96646444,0.00028767,3]
[343677475,1732847231800,-500.0,0.00028767,3]
[343677476,1732847231821,-298.46203672,0.00028767,3]
[343677477,1732847231846,-500.0,0.00028767,3]
[343677478,1732847231866,-500.0,0.00028767,3]
[343677479,1732847231886,-500.0,0.00028767,3]
[343677480,1732847231907,-500.0,0.00028767,3]
[343677481,1732847231928,-500.0,0.00028767,3]
[343677482,1732847231949,-500.0,0.00028767,3]
[343677483,1732847231970,-500.0,0.00028767,3]
[343677484,1732847231991,-475.94970313,0.00028767,3]
[343677485,1732847232012,-504.04437568,0.00028767,3]
[343677486,1732847232036,-500.0,0.00028767,3]
[343677487,1732847232056,-504.36108606,0.00028767,3]
[343677488,1732847232077,-500.0,0.00028767,3]
[343677489,1732847232098,-500.0,0.00028767,3]
[343677490,1732847232120,-500.0,0.00028767,3]
[343677491,1732847232140,-500.0,0.00028767,3]
[343677492,1732847232161,-500.0,0.00028767,3]
[343677493,1732847232181,-500.0,0.00028767,3]
[343677494,1732847232202,-428.69059647,0.00028767,3]
[343677495,1732847232222,-509.21695489,0.00028767,3]
[343677496,1732847232243,-503.63479661,0.00028767,3]
[343677497,1732847232264,-686.44463716,0.00028767,10]
[343677498,1732847232288,-500.0,0.00028767,3]
[343677499,1732847232310,-500.0,0.00028767,3]
[343677500,1732847232330,-500.0,0.00028767,3]
[343677501,1732847232350,-500.0,0.00028767,3]
[343677502,1732847232370,-500.0,0.00028767,3]
[343677503,1732847232391,-500.0,0.00028767,3]
[343677504,1732847232415,-500.0,0.00028767,3]
[343677505,1732847232436,-596.99275209,0.00028767,3]
[343677506,1732847232458,-306.58012281,0.00028767,3]
[343677507,1732847232480,-501.24637619,0.00028767,3]
[343677508,1732847232500,-500.0,0.00028767,3]
[343677509,1732847232519,-267.9936461,0.00028767,3]
[343677510,1732847232540,-151.0,0.00028767,7]
[343677511,1732847232561,-503.64185655,0.00028767,3]
[343677512,1732847232584,-151.0,0.00028767,7]
[343677513,1732847232606,-151.0,0.00028767,7]
[343677514,1732847232626,-500.0,0.00028767,3]
[343677515,1732847232647,-151.0,0.00028767,7]
[343677516,1732847232668,-151.0,0.00028767,7]
[343677517,1732847232689,-500.0,0.00028767,3]
[343677518,1732847232710,-504.9668727,0.00028767,3]
[343677519,1732847232730,-151.0,0.00028767,7]
[343677520,1732847232751,-500.0,0.00028767,3]
[343677521,1732847232772,-151.0,0.00028767,7]
[343677522,1732847232792,-500.0,0.00028767,3]
[343677523,1732847232814,-500.0,0.00028767,3]
[343677524,1732847232835,-151.0,0.00028767,7]
[343677525,1732847232856,-500.0,0.00028767,3]
[343677526,1732847232876,-500.0,0.00028767,3]
[343677527,1732847232898,-500.0,0.00028767,3]
[343677528,1732847232920,-151.0,0.00028767,7]
[343677529,1732847232940,-504.78417116,0.00028767,3]
[343677530,1732847232962,-500.0,0.00028767,3]
[343677531,1732847232983,-500.0,0.00028767,3]
[343677532,1732847233005,-151.0,0.00028767,7]
[343677533,1732847233027,-500.0,0.00028767,3]
[343677534,1732847233052,-500.0,0.00028767,3]
[343677535,1732847233074,-525.69456024,0.00028767,3]
[343677536,1732847233096,-151.0,0.00028767,7]
[343677537,1732847233117,-500.0,0.00028767,3]
[343677538,1732847233139,-500.0,0.00028767,3]
[343677539,1732847233160,-151.0,0.00028767,7]
[343677540,1732847233181,-500.0,0.00028767,3]
[343677541,1732847233203,-151.0,0.00028767,7]
[343677542,1732847233224,-189.00258107,0.00028767,3]
[343677543,1732847233244,-583.96,0.00028767,3]
[343677544,1732847233264,-562.34835322,0.00028767,3]
[343677545,1732847233285,-151.0,0.00028767,7]
[343677546,1732847233305,-583.96,0.00028767,3]
[343677547,1732847233326,-583.96,0.00028767,3]
[343677548,1732847233346,-151.0,0.00028767,7]
[343677549,1732847233367,-583.96,0.00028767,3]
[343677550,1732847233388,-583.96,0.00028767,3]
[343677551,1732847233414,-583.96,0.00028767,3]
[343677552,1732847233435,-151.0,0.00028767,7]
[343677553,1732847233553,-583.96,0.00028767,3]
[343677554,1732847233575,-500.0,0.00028767,3]
[343677555,1732847233598,-583.96,0.00028767,3]
[343677556,1732847233618,-500.0,0.00028767,3]
[343677557,1732847233639,-500.0,0.00028767,3]
[343677558,1732847233661,-287.379335,0.00028767,7]
[343677559,1732847233683,-583.96,0.00028767,3]
[343677560,1732847233705,-500.0,0.00028767,3]
[343677561,1732847233726,-583.96,0.00028767,3]
[343677562,1732847233747,-500.0,0.00028767,3]
[343677563,1732847233768,-500.0,0.00028767,3]
[343677564,1732847233798,-583.96,0.00028767,3]
[343677565,1732847233821,-505.59455947,0.00028767,3]
[343677566,1732847233843,-511.67775456,0.00028767,3]
[343677567,1732847233864,-583.96,0.00028767,3]
[343677568,1732847233888,-583.96,0.00028767,3]
[343677569,1732847233909,-583.96,0.00028767,3]
[343677570,1732847233930,-583.96,0.00028767,3]
[343677571,1732847233951,-583.96,0.00028767,3]
[343677572,1732847233971,-583.96,0.00028767,3]
[343677573,1732847233991,-500.0,0.00028767,3]
[343677574,1732847234011,-500.0,0.00028767,3]
[343677575,1732847234032,-500.0,0.00028767,3]
[343677576,1732847234054,-583.96,0.00028767,3]
[343677577,1732847234076,-583.96,0.00028767,3]
[343677578,1732847234097,-518.75840617,0.00028767,3]
[343677579,1732847234118,-500.0,0.00028767,3]
[343677580,1732847234140,-583.96,0.00028767,3]
[343677581,1732847234161,-507.95885178,0.00028767,3]
[343677582,1732847234183,-100.88996223,0.00028767,3]
[343677583,1732847250124,-419.70422574,0.00028309,15]
[343678098,1732847302463,503.55238172,0.0002,2]
[343678102,1732847429054,162.734842,0.00013973,2]
[343678148,1732847432225,-162.734842,0.00022174,2]
[343678150,1732847432235,-167.662028,0.00024117,2]
[343678152,1732847432245,-5251.96131058,0.00025,2]
[343678154,1732847432254,-300.0,0.00025089,2]
[343678156,1732847432263,-300.0,0.00025089,2]
[343678158,1732847432272,-14833.23098901,0.0002509,2]
[343678160,1732847432282,-292.0399925,0.00025946,2]
[343678162,1732847432292,-9141.56774621,0.00026,30]
[343678164,1732847432301,-1169.27083333,0.00027,2]
[343678166,1732847432310,-420.0,0.00027177,2]
[343678168,1732847432319,-420.0,0.00027598,2]
[343678170,1732847432329,-68.79577426,0.00028309,15]
[343678172,1732847432339,-4322.72,0.00028657,10]
[343678174,1732847432349,-1891.24348411,0.00028657,10]
[343678180,1732847432396,-6351.89651589,0.00028657,10]
[343678182,1732847432405,-538.18346239,0.00028667,2]
[343678184,1732847432414,-480.31720628,0.00028667,2]
[343678186,1732847432423,-20701.25742279,0.00028667,2]
[343678789,1732847438578,-6869.28,0.00028657,10]
[343678791,1732847438588,-66764.33383957,0.00028667,2]
[343678793,1732847438599,-1026.26463397,0.00028667,2]
[343679130,1732847441927,-21940.57691012,0.00028667,2]
[343679273,1732847443578,-24121.835496,0.00028667,2]
[343679675,1732847447895,-37760.32395,0.00028667,2]
[343680591,1732847547656,162.0,0.00022,2]
[343680592,1732847648034,162.0,0.00022,2]
[343680595,1732847748555,162.0,0.00022,2]
[343680596,1732847765857,178.199342,0.00025999,60]
[343680598,1732848049347,1169.27083333,0.00022,2]
[343681197,1732848251223,2565.48022281,0.00022,2]
[343681522,1732848357204,-2772.428016,0.0002218,2]
[343681523,1732848357225,-1169.27083333,0.000222,2]
[343681524,1732848357248,-309.0671413,0.00022261,2]
[343681525,1732848357271,-646.107449,0.00022488,2]
[343681526,1732848357292,-911.5362975,0.000227,2]
[343681527,1732848357313,-358.78897493,0.00022912,2]
[343681528,1732848357334,-300.0,0.00022912,2]
[343681529,1732848357356,-300.0,0.00022912,2]
[343681530,1732848357377,-43472.0,0.00022912,2]
[343681531,1732848357398,-2076.96484137,0.00022914,2]
[343681532,1732848357419,-29953.75463335,0.00023,3]
[343681533,1732848357442,-174.118316,0.00023263,2]
[343681534,1732848357464,-2757.74761334,0.00023746,2]
[343681535,1732848357487,-179.93,0.00023837,3]
[343681536,1732848357508,-539.8,0.00023837,3]
[343681537,1732848357532,-500.0,0.00023844,2]
[343681538,1732848357552,-500.0,0.00023844,2]
[343681539,1732848357572,-500.0,0.00023844,2]
[343681540,1732848357594,-500.0,0.00023844,2]
[343681541,1732848357615,-500.0,0.00023844,2]
[343681542,1732848357637,-500.0,0.00023844,2]
[343681543,1732848357660,-500.0,0.00023844,2]
[343681544,1732848357681,-500.0,0.00023844,2]
[343681545,1732848357702,-547.15088925,0.00023844,2]
[343681546,1732848357723,-167.43054,0.00023844,2]
[343681547,1732848357748,-500.0,0.00023844,2]
[343681548,1732848357776,-500.0,0.00023844,2]
[343681549,1732848357799,-500.0,0.00023844,2]
[343681550,1732848357820,-500.0,0.00023844,2]
[343681551,1732848357841,-500.0,0.00023844,2]
[343681552,1732848357863,-500.0,0.00023844,2]
[343681553,1732848357886,-500.0,0.00023844,2]
[343681554,1732848357909,-500.0,0.00023844,2]
[343681555,1732848357930,-500.0,0.00023844,2]
[343681556,1732848357953,-500.0,0.00023844,2]
[343681557,1732848357976,-500.0,0.00023844,2]
[343681558,1732848357998,-500.0,0.00023844,2]
[343681559,1732848358025,-500.0,0.00023844,2]
[343681560,1732848358047,-500.0,0.00023844,2]
[343681561,1732848358071,-500.0,0.00023844,2]
[343681562,1732848358092,-619.83272994,0.00023844,2]
[343681563,1732848358114,-500.0,0.00023844,2]
[343681564,1732848358135,-278.31424112,0.00023844,2]
[343681565,1732848358158,-450.90797764,0.00023844,2]
[343681566,1732848358182,-500.0,0.00023844,2]
[343681567,1732848358304,-500.0,0.00023844,2]
[343681568,1732848358331,-500.0,0.00023844,2]
[343681569,1732848358353,-500.0,0.00023844,2]
[343681570,1732848358375,-500.0,0.00023844,2]
[343681571,1732848358398,-500.0,0.00023844,2]
[343681572,1732848358419,-500.0,0.00023844,2]
[343681573,1732848358441,-500.0,0.00023844,2]
[343681574,1732848358463,-500.0,0.00023844,2]
[343681575,1732848358486,-500.0,0.00023844,2]
[343681576,1732848358509,-500.0,0.00023844,2]
[343681577,1732848358536,-500.0,0.00023844,2]
[343681578,1732848358557,-500.0,0.00023844,2]
[343681579,1732848358579,-500.0,0.00023844,2]
[343681580,1732848358601,-500.0,0.00023844,2]
[343681581,1732848358623,-500.0,0.00023844,2]
[343681582,1732848358647,-500.0,0.00023844,2]
[343681583,1732848358670,-500.0,0.00023844,2]
[343681584,1732848358693,-500.0,0.00023844,2]
[343681585,1732848358716,-500.0,0.00023844,2]
[343681586,1732848358743,-500.0,0.00023844,2]
[343681587,1732848358768,-500.0,0.00023844,2]
[343681588,1732848358789,-500.0,0.00023844,2]
[343681589,1732848358813,-500.0,0.00023844,2]
[343681590,1732848358837,-500.0,0.00023844,2]
[343681591,1732848358865,-500.0,0.00023844,2]
[343681592,1732848358887,-500.0,0.00023844,2]
[343681593,1732848358910,-310.78017043,0.00023844,2]
[343681594,1732848358931,-500.0,0.00023844,2]
[343681595,1732848358952,-500.0,0.00023844,2]
[343681596,1732848358973,-500.0,0.00023844,2]
[343681597,1732848358995,-500.0,0.00023844,2]
[343681598,1732848359017,-500.0,0.00023844,2]
[343681599,1732848359038,-500.0,0.00023844,2]
[343681600,1732848359059,-500.0,0.00023844,2]
[343681601,1732848359082,-500.0,0.00023844,2]
[343681602,1732848359104,-500.0,0.00023844,2]
[343681603,1732848359127,-500.0,0.00023844,2]
[343681604,1732848359148,-500.0,0.00023844,2]
[343681605,1732848359170,-500.0,0.00023844,2]
[343681606,1732848359191,-500.0,0.00023844,2]
[343681607,1732848359213,-500.0,0.00023844,2]
[343681608,1732848359235,-500.0,0.00023844,2]
[343681609,1732848359258,-500.0,0.00023844,2]
[343681610,1732848359282,-500.0,0.00023844,2]
[343681611,1732848359304,-650.0,0.00023844,2]
[343681612,1732848359325,-500.0,0.00023844,2]
[343681613,1732848359346,-500.0,0.00023844,2]
[343681614,1732848359367,-500.0,0.00023844,2]
[343681615,1732848359388,-500.0,0.00023844,2]
[343681616,1732848359409,-12265.8005966,0.00023847,11]
[343681617,1732848359429,-502.7754537,0.00023873,2]
[343681618,1732848359449,-503.13287357,0.00023873,2]
[343681619,1732848359470,-517.51106899,0.00023873,2]
[343681620,1732848359491,-9371.87453607,0.00023906,2]
[343681622,1732848387188,162.703234,0.00013973,2]
[343681623,1732848387412,162.703234,0.00020447,2]
[343681625,1732848448973,-300.0,0.00023743,2]
[343681626,1732848448997,-300.0,0.00023743,2]
[343681627,1732848449020,-5000.0,0.00023744,2]
[343681628,1732848449043,-5004.39934508,0.00023744,2]
[343681629,1732848449065,-160.0,0.00023873,2]
[343681630,1732848449088,-7557.36665175,0.00023906,2]
[343681647,1732848632539,-1169.27083333,0.000224,2]
[343681648,1732848632549,-6604.52797747,0.00023906,2]
[343681655,1732848638628,-1366.23083471,0.00023906,2]
[343681657,1732848638638,-300.0,0.00024826,2]
[343681659,1732848638647,-300.0,0.00024826,2]
[343681661,1732848638657,-1673.0968144,0.00024827,2]
[343681663,1732848638667,-175.55891918,0.00024839,8]
[343681665,1732848638678,-3869.26033207,0.00025466,2]
[343681713,1732848639519,-1858.58957673,0.00025466,2]
[343681714,1732848639529,-503.33319504,0.00025573,2]
[343681715,1732848639538,-420.0,0.000269,2]
[343681716,1732848639548,-162.703234,0.00026921,2]
[343681717,1732848639558,-151.0,0.00027115,5]
[343681718,1732848639567,-8852.65450553,0.00027243,2]
[343681719,1732848639578,-420.0,0.00027309,2]
[343681720,1732848639587,-2413.02916169,0.00027464,2]
[343681721,1732848639597,-1675.02645961,0.00027505,2]
[343681732,1732848640502,-7177.62804592,0.00027505,2]
[343681734,1732848640513,-151.0,0.00027564,6]
[343681736,1732848640522,-239.19264995,0.00027739,2]
[343681738,1732848640532,-8852.65450553,0.00027739,2]
[343681741,1732848640542,-619.18998573,0.0002775,5]
[343681743,1732848640564,-500.33206499,0.0002775,5]
[343681745,1732848640574,-254.42830563,0.00027769,2]
[343681747,1732848640584,-2413.02916165,0.00027855,2]
[343681749,1732848640593,-150.0,0.00027995,2]
[343681751,1732848640605,-531.0,0.00027995,2]
[343681753,1732848640616,-1104.0,0.00027995,2]
[343681755,1732848640625,-2378.0,0.00027995,2]
[343681757,1732848640635,-151.0,0.00028014,6]
[343681760,1732848640645,-291.09252555,0.0002806,2]
[343681762,1732848640655,-494.54533085,0.0002806,2]
[343681764,1732848640665,-500.0,0.0002806,2]
[343681765,1732848640674,-197.59047124,0.0002806,2]
[343681766,1732848640684,-500.0,0.0002806,2]
[343681767,1732848640694,-500.0,0.0002806,2]
[343681768,1732848640703,-500.0,0.0002806,2]
[343681769,1732848640713,-500.0,0.0002806,2]
[343681770,1732848640723,-500.0,0.0002806,2]
[343681771,1732848640732,-196.07801704,0.0002806,2]
[343681772,1732848640742,-8852.65450553,0.00028164,2]
[343681773,1732848640751,-2413.02916165,0.00028246,2]
[343681774,1732848640761,-151.0,0.00028463,6]
[343681775,1732848640771,-8852.65450553,0.00028472,2]
[343681776,1732848640780,-5724.4,0.00028557,10]
[343681777,1732848640790,-5724.4,0.00028557,10]
[343681778,1732848640800,-492.89329401,0.00028566,2]
[343681779,1732848640816,-28422.23046083,0.00028567,2]
[343681816,1732848644752,-150.338,0.00027995,2]
[343681818,1732848644762,-1517.02854273,0.00028567,2]
[343681820,1732848644773,-45434.90011973,0.00028567,2]
[343681823,1732848644787,-146625.84087671,0.00028567,2]
[343681825,1732848644797,-151.0,0.00028594,7]
[343681827,1732848644810,-201.427829,0.00028594,7]
[343681829,1732848644819,-151.0,0.00028594,7]
[343681831,1732848644829,-151.0,0.00028594,7]
[343681833,1732848644839,-2413.02916165,0.00028637,2]
[343681835,1732848644849,-359.86,0.00028657,3]
[343681837,1732848644860,-500.0,0.00028666,2]
[343681839,1732848644870,-206.414008,0.00028667,7]
[343681841,1732848644884,-151.0,0.00028667,7]
[343681843,1732848644895,-151.0,0.00028667,7]
[343681845,1732848644905,-151.0,0.00028667,7]
[343681847,1732848644915,-256.551924,0.00028667,7]
[343681849,1732848644925,-97.09580064,0.00028667,7]
[343682005,1732848646590,-159.45612336,0.00028667,7]
[343682007,1732848646599,-571.56200299,0.00028667,2]
[343682009,1732848646609,-151.0,0.00028667,7]
[343682011,1732848646619,-151.0,0.00028667,7]
[343682013,1732848646628,-151.0,0.00028667,7]
[343682015,1732848646638,-851.73365108,0.00028667,2]
[343682017,1732848646650,-1303.29970203,0.00028667,2]
[343682031,1732848646776,-2868.79975444,0.00028667,2]
[343682033,1732848646786,-300.457444,0.000287,14]
[343682035,1732848646796,-3816.27,0.00028757,10]
[343682037,1732848646806,-1372.4730686,0.00028766,2]
[343682040,1732848646819,-1853.67506696,0.00028767,2]
[343683501,1732848670873,158.3,0.00026,60]
[343683510,1732849011462,162.675978,0.00013973,2]
[343683511,1732849011652,162.675978,0.00020807,2]
[343683512,1732849022015,1169.27083333,0.00022,2]
[343683515,1732849265970,5000.0,0.00022,2]
[343683516,1732849274216,5000.0,0.00022,2]
[343683517,1732849282340,5000.0,0.00022,2]
[343683518,1732849290310,1471.15193049,0.00022,2]
[343683519,1732849298483,5000.0,0.00022,2]
[343683520,1732849314377,5000.0,0.00022,2]
[343683521,1732849338105,2018.46878988,0.00022,2]
[343683522,1732849348133,166.0,0.00022,2]
[343683523,1732849349058,1169.27083333,0.00022,2]
[343683529,1732849448442,167.0,0.00022,2]
[343683534,1732849547890,167.0,0.00022,2]
[343683537,1732849582599,186.8741751,0.00021281,2]
[343683602,1732849635243,-1169.27083333,0.000222,2]
[343683603,1732849635265,-300.0,0.00022459,2]
[343683604,1732849635290,-300.0,0.00022459,2]
[343683605,1732849635312,-1788.10194471,0.00022459,2]
[343683616,1732849648087,167.0,0.00022,2]
[343683677,1732849719755,400.0,0.00013973,2]
[343683678,1732849719968,400.0,0.00020447,2]
[343683682,1732849748412,167.0,0.00022,2]
[343683716,1732849832856,-1784.29730916,0.0002231,2]
[343683718,1732849832871,-3022.23620604,0.0002231,2]
[343683720,1732849832880,-837.62,0.0002245,3]
[343683722,1732849832890,-300.0,0.00022457,2]
[343683724,1732849832899,-300.0,0.00022457,2]
[343683726,1732849832908,-725.97431,0.00022458,2]
[343683728,1732849832918,-50092.0,0.00022458,2]
[343683730,1732849832927,-500.0,0.00022459,2]
[343683731,1732849832937,-500.0,0.00022459,2]
[343683733,1732849832946,-500.0,0.00022459,2]
[343683735,1732849832956,-213.56167749,0.00022459,2]
[343683737,1732849832965,-500.0,0.00022459,2]
[343683739,1732849832975,-500.0,0.00022459,2]
[343683741,1732849832984,-500.0,0.00022459,2]
[343683743,1732849832993,-500.0,0.00022459,2]
[343683745,1732849833004,-500.0,0.00022459,2]
[343683746,1732849833014,-24900.0,0.0002246,2]
[343683748,1732849833024,-172.213996,0.00022527,2]
[343683750,1732849833034,-1169.27083333,0.000226,2]
[343683752,1732849833043,-1044.021167,0.00022604,2]
[343683754,1732849833053,-152.0,0.00022982,2]
[343683756,1732849833064,-3000.0,0.00023,5]
[343683758,1732849833074,-167.0,0.00023014,2]
[343683760,1732849833083,-195.86153609,0.00023288,2]
[343683762,1732849833093,-279.2,0.00023792,3]
[343683764,1732849833102,-872.9990158,0.00023797,2]
[343683766,1732849833112,-25792.2480775,0.00023805,2]
[343683767,1732849833122,-11137.0625812,0.00024052,11]
[343683769,1732849833132,-420.0,0.00024392,2]
[343683771,1732849833141,-3000.0,0.000246,2]
[343683773,1732849833150,-5177.550395,0.0002461,2]
[343683775,1732849833161,-420.0,0.00024703,2]
[343683777,1732849833174,-558.4,0.00025162,3]
[343683779,1732849833183,-587.0,0.00026493,2]
[343683781,1732849833192,-400.0,0.00026921,2]
[343683783,1732849833203,-587.0,0.00027173,2]
[343683784,1732849833212,-531.0,0.00027206,2]
[343683786,1732849833221,-1104.0,0.00027206,2]
[343683788,1732849833231,-2378.0,0.00027206,2]
[343683790,1732849833240,-500.0,0.00027397,2]
[343683792,1732849833251,-8448.22617231,0.00027775,2]
[343683794,1732849833265,-603.0,0.00028,2]
[343683796,1732849833275,-150.0,0.00028005,2]
[343683798,1732849833285,-8448.22617231,0.00028057,2]
[343683799,1732849833294,-309.0,0.000284,2]
[343683801,1732849833304,-8448.22617231,0.00028443,2]
[343683803,1732849833313,-532.73770347,0.00028467,2]
[343683805,1732849833323,-532.73770344,0.00028517,2]
[343683807,1732849833332,-615.58012085,0.00028566,2]
[343683809,1732849833342,-228.38706217,0.00028566,2]
[343683811,1732849833351,-227.75393351,0.00028566,2]
[343683813,1732849833363,-193.96551932,0.00028566,2]
[343683815,1732849833374,-214.68109628,0.00028566,2]
[343683817,1732849833384,-5591.731646,0.00028567,2]
[343683819,1732849833395,-532.73770344,0.00028567,2]
[343683821,1732849833405,-198659.99586205,0.00028567,2]
[343683834,1732849833544,-14675.45980012,0.00028567,2]
[343684300,1732849838753,-500.0,0.00022458,2]
[343684302,1732849838763,-500.0,0.00022458,2]
[343684304,1732849838772,-368.87207073,0.00022458,2]
[343684306,1732849838782,-550.69485387,0.00022458,2]
[343684308,1732849838792,-500.0,0.00022458,2]
[343684310,1732849838802,-247.73857026,0.00022458,2]
[343684312,1732849838811,-500.0,0.00022458,2]
[343684314,1732849838821,-500.0,0.00022458,2]
[343684316,1732849838830,-290.96528233,0.00022458,2]
[343684318,1732849838840,-191.72919781,0.00022458,2]
[343684337,1732849839021,-308.27080219,0.00022458,2]
[343684340,1732849839036,-500.0,0.00022458,2]
[343684343,1732849839052,-500.0,0.00022458,2]
[343684346,1732849839067,-500.0,0.00022458,2]
[343684349,1732849839081,-500.0,0.00022458,2]
[343684351,1732849839096,-265.90198402,0.00022458,2]
[343684354,1732849839113,-500.0,0.00022458,2]
[343684357,1732849839128,-500.0,0.00022458,2]
[343684359,1732849839143,-500.0,0.00022458,2]
[343684362,1732849839156,-152.60671119,0.00022458,2]
[343684365,1732849839176,-500.0,0.00022458,2]
[343684367,1732849839192,-500.0,0.00022458,2]
[343684370,1732849839207,-500.0,0.00022458,2]
[343684372,1732849839219,-572.05509743,0.00022458,2]
[343684374,1732849839231,-500.0,0.00022458,2]
[343684376,1732849839244,-500.0,0.00022458,2]
[343684379,1732849839261,-395.91553599,0.00022458,2]
[343684382,1732849839276,-500.0,0.00022458,2]
[343684384,1732849839290,-500.0,0.00022458,2]
[343684387,1732849839305,-500.0,0.00022458,2]
[343684389,1732849839320,-500.0,0.00022458,2]